Department family,Entity,Date,Expense type,Expense area,Supplier,Transaction number, Amount 
Elht - Main Radiology Dept,Elht - Main Radiology Dept,04/06/2020,Scan Referrals,Diagnostic & Clinical Support,4ways Healthcare,1842461,"43,173.81"
Elht - Main Radiology Dept,Elht - Main Radiology Dept,11/06/2020,Scan Referrals,Diagnostic & Clinical Support,4ways Healthcare,1863965,"41,901.92"
Rbth - Pharmacy,Rbth - Pharmacy,02/06/2020,Drugs - Budget,Diagnostic & Clinical Support,Aah Pharmaceuticals Ltd Hills,1861037,"53,915.20"
Rbth - Pharmacy,Rbth - Pharmacy,02/06/2020,Drugs - Budget,Diagnostic & Clinical Support,Aah Pharmaceuticals Ltd Hills,1861708,"53,927.35"
Rbth - Pharmacy,Rbth - Pharmacy,04/06/2020,Drugs - Budget,Diagnostic & Clinical Support,Aah Pharmaceuticals Ltd Hills,1862078,"54,001.90"
Rbth - Pharmacy,Rbth - Pharmacy,23/06/2020,Drugs - Budget,Diagnostic & Clinical Support,Aah Pharmaceuticals Ltd Hills,1866437,"26,957.60"
Bgth - Pharmacy,Bgth - Pharmacy,01/06/2020,Drugs - Budget,Diagnostic & Clinical Support,Aah Pharmaceuticals Ltd Hills,1859963,-12.75
Bgth - Pharmacy,Bgth - Pharmacy,01/06/2020,Drugs - Budget,Diagnostic & Clinical Support,Aah Pharmaceuticals Ltd Hills,1859964,-78.00
Bgth - Pharmacy,Bgth - Pharmacy,09/06/2020,Drugs - Budget,Diagnostic & Clinical Support,Aah Pharmaceuticals Ltd Hills,1863682,-72.89
Bgth - Pharmacy,Bgth - Pharmacy,09/06/2020,Drugs - Budget,Diagnostic & Clinical Support,Aah Pharmaceuticals Ltd Hills,1863683,-87.40
Bgth - Pharmacy,Bgth - Pharmacy,09/06/2020,Drugs - Budget,Diagnostic & Clinical Support,Aah Pharmaceuticals Ltd Hills,1863684,-159.27
Bgth - Pharmacy,Bgth - Pharmacy,09/06/2020,Drugs - Budget,Diagnostic & Clinical Support,Aah Pharmaceuticals Ltd Hills,1863905,-87.00
Bgth - Pharmacy,Bgth - Pharmacy,09/06/2020,Drugs - Budget,Diagnostic & Clinical Support,Aah Pharmaceuticals Ltd Hills,1863917,-5.74
Bgth - Pharmacy,Bgth - Pharmacy,09/06/2020,Drugs - Budget,Diagnostic & Clinical Support,Aah Pharmaceuticals Ltd Hills,1864440,-2.55
Bgth - Pharmacy,Bgth - Pharmacy,18/06/2020,Drugs - Budget,Diagnostic & Clinical Support,Aah Pharmaceuticals Ltd Hills,1866098,-72.89
Bgth - Pharmacy,Bgth - Pharmacy,23/06/2020,Drugs - Budget,Diagnostic & Clinical Support,Aah Pharmaceuticals Ltd Hills,1866873,-98.00
Pre-Op Assessment,Pre-Op Assessment,16/06/2020,Med & Surg Supplies,Surgical & Anaes Services,Aah Pharmaceuticals Ltd Hills,1852482,-325.62
Rbth - Pharmacy,Rbth - Pharmacy,01/06/2020,Drugs - Budget,Diagnostic & Clinical Support,Aah Pharmaceuticals Ltd Hills,1859946,-135.00
Rbth - Pharmacy,Rbth - Pharmacy,01/06/2020,Drugs - Budget,Diagnostic & Clinical Support,Aah Pharmaceuticals Ltd Hills,1859947,"-1,265.00"
Rbth - Pharmacy,Rbth - Pharmacy,01/06/2020,Drugs - Budget,Diagnostic & Clinical Support,Aah Pharmaceuticals Ltd Hills,1859948,-210.00
Rbth - Pharmacy,Rbth - Pharmacy,01/06/2020,Drugs - Budget,Diagnostic & Clinical Support,Aah Pharmaceuticals Ltd Hills,1859949,-341.40
Rbth - Pharmacy,Rbth - Pharmacy,01/06/2020,Drugs - Budget,Diagnostic & Clinical Support,Aah Pharmaceuticals Ltd Hills,1859950,-57.50
Rbth - Pharmacy,Rbth - Pharmacy,01/06/2020,Drugs - Budget,Diagnostic & Clinical Support,Aah Pharmaceuticals Ltd Hills,1859951,-49.50
Rbth - Pharmacy,Rbth - Pharmacy,01/06/2020,Drugs - Budget,Diagnostic & Clinical Support,Aah Pharmaceuticals Ltd Hills,1859952,-11.70
Rbth - Pharmacy,Rbth - Pharmacy,01/06/2020,Drugs - Budget,Diagnostic & Clinical Support,Aah Pharmaceuticals Ltd Hills,1859954,-142.00
Rbth - Pharmacy,Rbth - Pharmacy,01/06/2020,Drugs - Budget,Diagnostic & Clinical Support,Aah Pharmaceuticals Ltd Hills,1859955,-90.00
Rbth - Pharmacy,Rbth - Pharmacy,01/06/2020,Drugs - Budget,Diagnostic & Clinical Support,Aah Pharmaceuticals Ltd Hills,1859957,-9.12
Rbth - Pharmacy,Rbth - Pharmacy,01/06/2020,Drugs - Budget,Diagnostic & Clinical Support,Aah Pharmaceuticals Ltd Hills,1859958,-1.90
Rbth - Pharmacy,Rbth - Pharmacy,01/06/2020,Drugs - Budget,Diagnostic & Clinical Support,Aah Pharmaceuticals Ltd Hills,1859959,-24.70
Rbth - Pharmacy,Rbth - Pharmacy,01/06/2020,Drugs - Budget,Diagnostic & Clinical Support,Aah Pharmaceuticals Ltd Hills,1859960,-52.08
Rbth - Pharmacy,Rbth - Pharmacy,01/06/2020,Drugs - Budget,Diagnostic & Clinical Support,Aah Pharmaceuticals Ltd Hills,1859961,-61.05
Rbth - Pharmacy,Rbth - Pharmacy,01/06/2020,Drugs - Budget,Diagnostic & Clinical Support,Aah Pharmaceuticals Ltd Hills,1859962,-29.90
Rbth - Pharmacy,Rbth - Pharmacy,01/06/2020,Drugs - Budget,Diagnostic & Clinical Support,Aah Pharmaceuticals Ltd Hills,1859981,-129.95
Rbth - Pharmacy,Rbth - Pharmacy,01/06/2020,Drugs - Budget,Diagnostic & Clinical Support,Aah Pharmaceuticals Ltd Hills,1859982,-48.00
Rbth - Pharmacy,Rbth - Pharmacy,01/06/2020,Drugs - Budget,Diagnostic & Clinical Support,Aah Pharmaceuticals Ltd Hills,1859983,-20.00
Rbth - Pharmacy,Rbth - Pharmacy,01/06/2020,Drugs - Budget,Diagnostic & Clinical Support,Aah Pharmaceuticals Ltd Hills,1859984,-14.00
Rbth - Pharmacy,Rbth - Pharmacy,01/06/2020,Drugs - Budget,Diagnostic & Clinical Support,Aah Pharmaceuticals Ltd Hills,1859985,-2.00
Rbth - Pharmacy,Rbth - Pharmacy,01/06/2020,Drugs - Budget,Diagnostic & Clinical Support,Aah Pharmaceuticals Ltd Hills,1859986,-0.65
Rbth - Pharmacy,Rbth - Pharmacy,01/06/2020,Drugs - Budget,Diagnostic & Clinical Support,Aah Pharmaceuticals Ltd Hills,1859987,-15.74
Rbth - Pharmacy,Rbth - Pharmacy,17/06/2020,Drugs - Budget,Diagnostic & Clinical Support,Aah Pharmaceuticals Ltd Hills,1866370,-78.43
Rbth - Pharmacy,Rbth - Pharmacy,18/06/2020,Drugs - Budget,Diagnostic & Clinical Support,Aah Pharmaceuticals Ltd Hills,1866171,-35.78
Rbth - Pharmacy,Rbth - Pharmacy,18/06/2020,Drugs - Budget,Diagnostic & Clinical Support,Aah Pharmaceuticals Ltd Hills,1866172,-3.06
Rbth - Pharmacy,Rbth - Pharmacy,18/06/2020,Drugs - Budget,Diagnostic & Clinical Support,Aah Pharmaceuticals Ltd Hills,1866178,-9.42
Rbth - Pharmacy,Rbth - Pharmacy,18/06/2020,Drugs - Budget,Diagnostic & Clinical Support,Aah Pharmaceuticals Ltd Hills,1866179,-5.28
Rbth - Pharmacy,Rbth - Pharmacy,18/06/2020,Drugs - Budget,Diagnostic & Clinical Support,Aah Pharmaceuticals Ltd Hills,1866180,-651.30
Rbth - Pharmacy,Rbth - Pharmacy,23/06/2020,Drugs - Budget,Diagnostic & Clinical Support,Aah Pharmaceuticals Ltd Hills,1866869,-79.00
Rbth - Pharmacy,Rbth - Pharmacy,23/06/2020,Drugs - Budget,Diagnostic & Clinical Support,Aah Pharmaceuticals Ltd Hills,1866870,-148.50
It Support,It Support,09/06/2020,Application Maintenance,Corporate Services,Ans Group,1864111,"141,112.14"
E&F Senior Managers,E&F Senior Managers,18/06/2020,Comp H Ware Purch Non-Capital,Estates & Facilities,Arjo Uk Ltd,29987,"33,987.36"
Rbth - Pharmacy,Rbth - Pharmacy,16/06/2020,Drugs - Budget,Diagnostic & Clinical Support,Baxter Healthcare Ltd,1864233,"26,715.78"
Rbth - Pharmacy,Rbth - Pharmacy,23/06/2020,Drugs - Budget,Diagnostic & Clinical Support,Baxter Healthcare Ltd,1866254,"42,718.23"
Rbth - Pharmacy,Rbth - Pharmacy,09/06/2020,Drugs - Budget,Diagnostic & Clinical Support,Baxter Healthcare Ltd,1863060,"-2,005.79"
Rbth - Pharmacy,Rbth - Pharmacy,09/06/2020,Drugs - Budget,Diagnostic & Clinical Support,Baxter Healthcare Ltd,1863150,-591.51
Rbth - Pharmacy,Rbth - Pharmacy,01/06/2020,Drugs - Budget,Diagnostic & Clinical Support,Bayer Ltd,1860704,"30,590.00"
Rbth - Pharmacy,Rbth - Pharmacy,01/06/2020,Drugs - Budget,Diagnostic & Clinical Support,Bayer Ltd,1860707,"24,035.00"
Rbth - Pharmacy,Rbth - Pharmacy,16/06/2020,Drugs - Budget,Diagnostic & Clinical Support,Bayer Ltd,1864329,"26,993.49"
Rbth - Pharmacy,Rbth - Pharmacy,16/06/2020,Drugs - Budget,Diagnostic & Clinical Support,Bayer Ltd,1864330,"22,811.40"
Bgth Pfi Contract,Bgth Pfi Contract,18/06/2020,Pfi Unitary Charges,Corporate Services,Burnley General Hosp Phase V Spc Ltd,1861838,"442,800.58"
Rbth Energy,Rbth Energy,04/06/2020,Consultancy Services,Estates & Facilities,Cadantis Forensics,1862263,"25,998.66"
Elht Emergency Preparedness,Elht Emergency Preparedness,01/06/2020,Med & Surg Supplies,Corporate Services,Ccs Media Ltd,1858940,"44,800.00"
Comp Dept - Trading Account,Comp Dept - Trading Account,01/06/2020,Comp H Ware Purch Non-Capital,Corporate Services,Ccs Media Ltd,1854984,"27,153.20"
Balance Sheet,Balance Sheet,23/06/2020,Additions - Auc (P),Non Directorate,Citrix Systems Uk Ltd,30064,"48,680.31"
Balance Sheet,Balance Sheet,01/06/2020,Pfi Trust Support Payment,Non Directorate,Consort (Trust Support Payment),1849863,"48,582.66"
Balance Sheet,Balance Sheet,01/06/2020,Pfi Trust Support Payment,Non Directorate,Consort (Trust Support Payment),1856875,"48,582.66"
All - N Dir Fin Chges Equip,All - N Dir Fin Chges Equip,01/06/2020,Other Finance Rev (Fin0060),Capital Charges,Consort (Trust Support Payment),29954,"-34,033.86"
Balance Sheet,Balance Sheet,01/06/2020,Pfi Trust Support Payment,Non Directorate,Consort (Trust Support Payment),1860282,"-264,010.38"
Elht Parking,Elht Parking,01/06/2020,Car Parking,Estates & Facilities,Consort Healthcare,1856971,"52,022.71"
Rbth Pfi Contract,Rbth Pfi Contract,01/06/2020,Pfi Unitary Charges,Corporate Services,Consort Healthcare,1856950,"1,680,371.29"
Balance Sheet,Balance Sheet,02/06/2020,Additions - Auc (P),Non Directorate,Consort Healthcare,29971,"98,202.53"
Balance Sheet,Balance Sheet,02/06/2020,Additions - Auc (P),Non Directorate,Consort Healthcare,29973,"41,219.93"
Balance Sheet,Balance Sheet,02/06/2020,Additions - Auc (P),Non Directorate,Consort Healthcare,29984,"115,645.80"
Balance Sheet,Balance Sheet,02/06/2020,Additions - Auc (P),Non Directorate,Consort Healthcare,29988,"31,384.91"
Bgth Energy,Bgth Energy,04/06/2020,Gas - Boiler Fuel,Estates & Facilities,Corona Energy,1857627,"42,233.42"
Bgth Energy,Bgth Energy,04/06/2020,Gas - Boiler Fuel,Estates & Facilities,Corona Energy,1858399,"34,229.09"
Bgth Energy,Bgth Energy,01/06/2020,Gas - Boiler Fuel,Estates & Facilities,Corona Energy,1829850,"-2,100.40"
Bgth Energy,Bgth Energy,01/06/2020,Gas - Boiler Fuel,Estates & Facilities,Corona Energy,1829976,"-2,154.91"
Bgth Energy,Bgth Energy,01/06/2020,Gas - Boiler Fuel,Estates & Facilities,Corona Energy,1829978,"-3,132.63"
Bgth Energy,Bgth Energy,01/06/2020,Gas - Boiler Fuel,Estates & Facilities,Corona Energy,1830013,"-3,800.92"
Bgth Energy,Bgth Energy,01/06/2020,Gas - Boiler Fuel,Estates & Facilities,Corona Energy,1830018,"-2,071.98"
Bgth Energy,Bgth Energy,01/06/2020,Gas - Boiler Fuel,Estates & Facilities,Corona Energy,1830019,"-2,524.19"
Bgth Energy,Bgth Energy,01/06/2020,Gas - Boiler Fuel,Estates & Facilities,Corona Energy,1830021,"-2,135.51"
Bgth Energy,Bgth Energy,01/06/2020,Gas - Boiler Fuel,Estates & Facilities,Corona Energy,1830026,"-3,540.84"
Bgth Energy,Bgth Energy,01/06/2020,Gas - Boiler Fuel,Estates & Facilities,Corona Energy,1830027,"-5,174.02"
Bgth Energy,Bgth Energy,01/06/2020,Gas - Boiler Fuel,Estates & Facilities,Corona Energy,1830028,"-4,833.59"
Bgth Energy,Bgth Energy,01/06/2020,Gas - Boiler Fuel,Estates & Facilities,Corona Energy,1830029,"-5,177.07"
Bgth Energy,Bgth Energy,01/06/2020,Gas - Boiler Fuel,Estates & Facilities,Corona Energy,1830036,"-2,801.41"
Bgth Energy,Bgth Energy,01/06/2020,Gas - Boiler Fuel,Estates & Facilities,Corona Energy,1830037,"-3,292.01"
Bgth Energy,Bgth Energy,01/06/2020,Gas - Boiler Fuel,Estates & Facilities,Corona Energy,1830041,"-1,912.24"
Bgth Energy,Bgth Energy,01/06/2020,Gas - Boiler Fuel,Estates & Facilities,Corona Energy,1830059,"-5,438.48"
Bgth Energy,Bgth Energy,01/06/2020,Gas - Boiler Fuel,Estates & Facilities,Corona Energy,1830061,"-5,090.60"
Bgth Energy,Bgth Energy,01/06/2020,Gas - Boiler Fuel,Estates & Facilities,Corona Energy,1830064,"-3,572.76"
Bgth Energy,Bgth Energy,01/06/2020,Gas - Boiler Fuel,Estates & Facilities,Corona Energy,1830068,"-3,098.12"
Bgth Energy,Bgth Energy,01/06/2020,Gas - Boiler Fuel,Estates & Facilities,Corona Energy,1830070,"-5,387.56"
Bgth Energy,Bgth Energy,01/06/2020,Gas - Boiler Fuel,Estates & Facilities,Corona Energy,1830072,"-4,969.01"
Bgth Energy,Bgth Energy,01/06/2020,Gas - Boiler Fuel,Estates & Facilities,Corona Energy,1830075,"-5,499.28"
Bgth Energy,Bgth Energy,01/06/2020,Gas - Boiler Fuel,Estates & Facilities,Corona Energy,1830076,"-5,705.89"
Bgth Energy,Bgth Energy,01/06/2020,Gas - Boiler Fuel,Estates & Facilities,Corona Energy,1830077,"-6,479.70"
Bgth Energy,Bgth Energy,01/06/2020,Gas - Boiler Fuel,Estates & Facilities,Corona Energy,1830078,"-5,562.89"
Bgth Energy,Bgth Energy,01/06/2020,Gas - Boiler Fuel,Estates & Facilities,Corona Energy,1830083,"-2,613.83"
Bgth Energy,Bgth Energy,01/06/2020,Gas - Boiler Fuel,Estates & Facilities,Corona Energy,1830084,"-2,318.59"
Bgth Energy,Bgth Energy,01/06/2020,Gas - Boiler Fuel,Estates & Facilities,Corona Energy,1830087,"-2,370.59"
Bgth Energy,Bgth Energy,01/06/2020,Gas - Boiler Fuel,Estates & Facilities,Corona Energy,1830090,"-3,823.26"
Bgth Energy,Bgth Energy,01/06/2020,Gas - Boiler Fuel,Estates & Facilities,Corona Energy,1830092,"-2,164.70"
Bgth Energy,Bgth Energy,01/06/2020,Gas - Boiler Fuel,Estates & Facilities,Corona Energy,1830100,"-2,047.89"
Bgth Energy,Bgth Energy,18/06/2020,Gas - Boiler Fuel,Estates & Facilities,Corona Energy,1830082,"-4,459.72"
Rbth - Pharmacy,Rbth - Pharmacy,01/06/2020,Drugs - Budget,Diagnostic & Clinical Support,Csl Behring,1859475,"25,200.00"
Bgth Energy,Bgth Energy,01/06/2020,Electricity,Estates & Facilities,Edf Energy,1857368,"81,144.41"
Bgth Energy,Bgth Energy,16/06/2020,Electricity,Estates & Facilities,Edf Energy,1863666,"86,213.35"
Pch Energy,Pch Energy,01/06/2020,Electricity,Estates & Facilities,Edf Energy,1850790,"-4,981.04"
Rbth Birthing Centre Energy,Rbth Birthing Centre Energy,01/06/2020,Electricity,Estates & Facilities,Edf Energy,1850788,"-4,218.62"
Avh  Energy,Avh  Energy,01/06/2020,Electricity,Estates & Facilities,Edf Energy,1850786,"-4,304.13"
 I.T Telephones, I.T Telephones,11/06/2020,Calls - Mobile Telephones,Corporate Services,Ee Limited,1825275,"29,160.48"
Comp Dept - Trading Account,Comp Dept - Trading Account,04/06/2020,Other Costs - Services,Corporate Services,European Electronique,1858215,"114,709.30"
Comp Dept - Trading Account,Comp Dept - Trading Account,04/06/2020,Other Costs - Services,Corporate Services,European Electronique,1859412,"45,726.80"
Dietetics,Dietetics,11/06/2020,Med & Surg Supplies,Diagnostic & Clinical Support,Fresenius Kabi Ltd,1863337,"51,369.60"
Dietetics,Dietetics,11/06/2020,Med & Surg Supplies,Diagnostic & Clinical Support,Fresenius Kabi Ltd,1863338,"42,497.38"
Dietetics,Dietetics,11/06/2020,Med & Surg Equipment,Diagnostic & Clinical Support,Fresenius Kabi Ltd,1863669,"25,027.87"
Rbth  Catering,Rbth  Catering,01/06/2020,Hardware  & Crockery,Estates & Facilities,Fulfil Uk,1859914,"31,920.00"
Rbth  Catering,Rbth  Catering,04/06/2020,Hardware  & Crockery,Estates & Facilities,Fulfil Uk,1861793,"27,360.00"
Rbth  Catering,Rbth  Catering,18/06/2020,Hardware  & Crockery,Estates & Facilities,Fulfil Uk,1863864,"31,920.00"
Rbth  Catering,Rbth  Catering,18/06/2020,Hardware  & Crockery,Estates & Facilities,Fulfil Uk,1865334,"31,920.00"
Balance Sheet,Balance Sheet,02/06/2020,Additions - Auc (P),Non Directorate,Ge Medical Systems Ltd,29705,"41,500.00"
Elht Emergency Preparedness,Elht Emergency Preparedness,02/06/2020,Med & Surg Supplies,Corporate Services,Genmed Enterprises Ltd,1859571,"80,000.00"
Elht Emergency Preparedness,Elht Emergency Preparedness,18/06/2020,Med & Surg Supplies,Corporate Services,Genmed Enterprises Ltd,1859573,"291,746.00"
Elht Emergency Preparedness,Elht Emergency Preparedness,23/06/2020,Med & Surg Supplies,Corporate Services,Genmed Enterprises Ltd,1862632,"367,226.00"
Corporate Office,Corporate Office,18/06/2020,Consultancy Services,Corporate Services,Ggi Ltd,1865449,"23,650.00"
International Recruitment,International Recruitment,01/06/2020,Agency Recruitment Fees,Corporate Services,Health Education England,77015,"79,438.71"
Rbth - Pharmacy,Rbth - Pharmacy,01/06/2020,Drugs - Budget,Diagnostic & Clinical Support,Healthcare At Home Ltd,1859937,"20,962.03"
Rbth - Pharmacy,Rbth - Pharmacy,23/06/2020,Drugs - Budget,Diagnostic & Clinical Support,Healthcare At Home Ltd,1867577,"21,986.21"
Rbth - Pharmacy,Rbth - Pharmacy,23/06/2020,Drugs - Budget,Diagnostic & Clinical Support,Healthcare At Home Ltd,1867580,"22,200.00"
Women & Newborn Mgmt Bgth,Women & Newborn Mgmt Bgth,11/06/2020,Other Computer Costs Maint,Family Care,Healthnet Connections,1858790,"21,917.50"
E&F Senior Managers,E&F Senior Managers,23/06/2020,Comp H Ware Purch Non-Capital,Estates & Facilities,Hill-Rom,1863816,"33,000.00"
Rbth Transport,Rbth Transport,01/06/2020,Transport - Maint Ext Contr S,Estates & Facilities,Holmeswood Coaches Limited,1859610,"47,287.50"
Rbth Transport,Rbth Transport,16/06/2020,Car Hire - Other,Estates & Facilities,Holmeswood Coaches Limited,1864750,"53,390.48"
E&F Senior Managers,E&F Senior Managers,02/06/2020,Comp H Ware Purch Non-Capital,Estates & Facilities,Hospedia Ltd,1861133,"21,180.00"
E&F Senior Managers,E&F Senior Managers,02/06/2020,Comp H Ware Purch Non-Capital,Estates & Facilities,Hospedia Ltd,29981,"26,122.00"
Balance Sheet,Balance Sheet,01/06/2020,Additions - Auc (P),Non Directorate,Integrated Health Projects,29969,"606,175.52"
Balance Sheet,Balance Sheet,18/06/2020,Additions - Auc (P),Non Directorate,Integrated Health Projects,30054,"20,911.54"
Balance Sheet,Balance Sheet,18/06/2020,Additions - Auc (P),Non Directorate,Integrated Health Projects,30055,"492,540.81"
Elht - Main Radiology Dept,Elht - Main Radiology Dept,09/06/2020,X-Ray Equip Maint Contracts,Diagnostic & Clinical Support,Integrated Radiological Services (Irs) Ltd,1862745,"100,703.00"
Systems Support,Systems Support,23/06/2020,Application Maintenance,Corporate Services,K2 Medical Systems,1865570,"37,000.00"
Elht - Histopathology,Elht - Histopathology,04/06/2020,Lab Equipment Contract,Diagnostic & Clinical Support,Leica Microsystems (Uk) Ltd,1847780,"46,286.57"
Rbth - Pharmacy,Rbth - Pharmacy,01/06/2020,Drugs - Budget,Diagnostic & Clinical Support,Lloydspharmacy Clinical Homecare,1860023,"22,220.80"
Rbth - Cardiac Catheter Lab,Rbth - Cardiac Catheter Lab,23/06/2020,Purch Of Hc-Non Nhs-Priv Sect,Medicine & Emergency Care,Medtronic Ltd,1865624,"115,878.96"
Balance Sheet,Balance Sheet,09/06/2020,Inventories - Rbth Theatres,Non Directorate,Medtronic Ltd,1853405,"-2,715.00"
Balance Sheet,Balance Sheet,09/06/2020,Inventories - Rbth Theatres,Non Directorate,Medtronic Ltd,1861633,-393.63
Elht Emergency Preparedness,Elht Emergency Preparedness,18/06/2020,Med & Surg Drapes & Gowns,Corporate Services,Mip Uk Limited,1863806,"177,933.00"
Corporate Office,Corporate Office,09/06/2020,Train. Exp Conference Fees Etc,Corporate Services,Nhs Providers,1862766,"22,234.00"
Rbth Endoscopy,Rbth Endoscopy,01/06/2020,Med & Surg Maintenance,Medicine & Emergency Care,Nhs Supply Chain Maintenance Contracts 201,1853394,"36,695.12"
Elht - Ct,Elht - Ct,16/06/2020,X-Ray Equip Maint Contracts,Diagnostic & Clinical Support,Nhs Supply Chain Maintenance Contracts 201,1837469,"75,439.19"
Subcontract Ies,Subcontract Ies,04/06/2020,Purch Of Hc-Non Nhs-Priv Sect,Surgical & Anaes Services,Primary Eyecare North Limited,1849897,"26,696.00"
Bgth - Pharmacy,Bgth - Pharmacy,23/06/2020,Drugs - Budget,Diagnostic & Clinical Support,Rowlands Pharmacy,1857487,"141,934.40"
Bgth - Pharmacy,Bgth - Pharmacy,23/06/2020,Drugs - Budget,Diagnostic & Clinical Support,Rowlands Pharmacy,1865352,"133,560.69"
Rbth - Pharmacy,Rbth - Pharmacy,23/06/2020,Drugs - Budget,Diagnostic & Clinical Support,Rowlands Pharmacy,1855168,"572,863.96"
Director Of Finance,Director Of Finance,16/06/2020,Sla From Elfs,Corporate Services,Salford Royal Nhs Foundation Trust,76975,"38,524.00"
Director Of Finance,Director Of Finance,16/06/2020,Sla From Elfs,Corporate Services,Salford Royal Nhs Foundation Trust,76976,"44,175.00"
Quality & Safety,Quality & Safety,02/06/2020,Subscriptions,Corporate Services,Salford Royal Nhs Foundation Trust,76877,"40,000.00"
It Support,It Support,01/06/2020,Pfi Unitary Charges,Corporate Services,Siemens Healthcare,1849896,"57,275.10"
Elht-Blood Sciences,Elht-Blood Sciences,09/06/2020,Mes Contracts,Diagnostic & Clinical Support,Siemens Healthcare Diagnostics Limited,1863622,"83,347.75"
Elht Waste Disposal,Elht Waste Disposal,02/06/2020,Domestic Waste,Estates & Facilities,Sita Uk Limited,1861157,"21,166.08"
Balance Sheet,Balance Sheet,01/06/2020,Sal Sac - Home Electronics,Non Directorate,Sme Hci Limited,1859858,"31,093.52"
Balance Sheet,Balance Sheet,01/06/2020,Sal Sac - Home Electronics,Non Directorate,Sme Hci Limited,1857620,-461.81
Balance Sheet,Balance Sheet,01/06/2020,Sal Sac - Home Electronics,Non Directorate,Sme Hci Limited,1857621,-461.81
Balance Sheet,Balance Sheet,18/06/2020,Sal Sac - Home Electronics,Non Directorate,Sme Hci Limited,1708800,-751.53
Elht - Ct,Elht - Ct,16/06/2020,X-Ray Equip Maint Contracts,Diagnostic & Clinical Support,Supply Chain Coordination Ltd,1860148,"42,965.86"
Balance Sheet,Balance Sheet,09/06/2020,Additions - Auc (P),Non Directorate,Sysmex Uk Ltd,29993,"54,000.00"
Rbth Energy,Rbth Energy,09/06/2020,Water  & Sewerage,Estates & Facilities,Water Plus Limited,1860846,"44,002.14"
Bgth Energy,Bgth Energy,09/06/2020,Water  & Sewerage,Estates & Facilities,Water Plus Limited,1723708,-24.80
Bgth Energy,Bgth Energy,09/06/2020,Water  & Sewerage,Estates & Facilities,Water Plus Limited,1723710,-35.01
Bgth Energy,Bgth Energy,09/06/2020,Water  & Sewerage,Estates & Facilities,Water Plus Limited,1787827,-60.55
Bgth Energy,Bgth Energy,09/06/2020,Water  & Sewerage,Estates & Facilities,Water Plus Limited,1798226,-51.48
Bgth Energy,Bgth Energy,09/06/2020,Water  & Sewerage,Estates & Facilities,Water Plus Limited,1799891,-226.01
Bgth Energy,Bgth Energy,09/06/2020,Water  & Sewerage,Estates & Facilities,Water Plus Limited,1809411,-95.08
Bgth Energy,Bgth Energy,09/06/2020,Water  & Sewerage,Estates & Facilities,Water Plus Limited,1828122,-55.08
Community Energy,Community Energy,09/06/2020,Water  & Sewerage,Estates & Facilities,Water Plus Limited,1688898,-68.28
Community Energy,Community Energy,09/06/2020,Water  & Sewerage,Estates & Facilities,Water Plus Limited,1688899,-89.18
Community Energy,Community Energy,09/06/2020,Water  & Sewerage,Estates & Facilities,Water Plus Limited,1688915,-92.56
Community Energy,Community Energy,09/06/2020,Water  & Sewerage,Estates & Facilities,Water Plus Limited,1688917,-92.56
Community Energy,Community Energy,09/06/2020,Water  & Sewerage,Estates & Facilities,Water Plus Limited,1688919,-96.72
Community Energy,Community Energy,09/06/2020,Water  & Sewerage,Estates & Facilities,Water Plus Limited,1688920,-92.58
Community Energy,Community Energy,09/06/2020,Water  & Sewerage,Estates & Facilities,Water Plus Limited,1688921,-92.58
Community Energy,Community Energy,09/06/2020,Water  & Sewerage,Estates & Facilities,Water Plus Limited,1688933,-126.87
,,,,,,total,"7,825,940.45"
